fUSD/lending_fUSD_20241111
["ID","MTS","AMOUNT","RATE_DAILY","PERIOD"]
[341989669,1731343884932,-679.08,0.00013989,2]
[341989670,1731343884942,-500.0,0.00013989,2]
[341989671,1731343884951,-500.0,0.00013989,2]
[341989672,1731343884960,-716.7,0.00013989,2]
[341989673,1731343884969,-1204.55,0.00013989,2]
[341989674,1731343884979,-638.46,0.00013989,2]
[341989675,1731343884988,-500.0,0.00013989,2]
[341989676,1731343884998,-500.0,0.00013989,2]
[341989677,1731343885007,-500.0,0.00013989,2]
[341989678,1731343885016,-620.98,0.00013989,2]
[341989679,1731343885026,-88103.52358944,0.0001399,2]
[341989680,1731343885054,-249.4064298,0.00013879,2]
[341989681,1731343885065,-718.46124047,0.0001399,2]
[341989682,1731343989374,252.602,0.000123,2]
[341989689,1731344411052,1292.54,0.00010522,2]
[341989693,1731344730385,1000.0,0.00012303,2]
[341989694,1731344744643,250.0,0.00012303,2]
[341989697,1731344830264,546.94,0.00012294,2]
[341989698,1731344841762,5335.42,0.00012294,2]
[341989700,1731344955111,410.6,0.0001231,2]
[341989709,1731345031492,-250.0,0.00012352,2]
[341989710,1731345031501,-323.76,0.00012381,2]
[341989711,1731345031512,-205.44,0.00012383,2]
[341989712,1731345031522,-183.27,0.00012466,2]
[341989713,1731345031531,-183.27,0.00012528,2]
[341989714,1731345031540,-183.27,0.00012591,2]
[341989715,1731345031550,-3816.78956595,0.00012733,2]
[341989716,1731345031559,-1292.54,0.00012786,2]
[341989717,1731345031569,-167.31,0.00012833,2]
[341989718,1731345031578,-168.23,0.00012842,2]
[341989719,1731345031588,-646.108416,0.00012842,2]
[341989720,1731345031600,-1382.341584,0.00012842,2]
[341989721,1731345031609,-167.31,0.00012858,2]
[341989722,1731345031618,-167.31,0.00012884,2]
[341989723,1731345031627,-455.87,0.00012885,2]
[341989724,1731345031638,-167.31,0.0001291,2]
[341989725,1731345031647,-167.31,0.00012935,2]
[341989726,1731345031656,-68.5196743,0.00012961,2]
[341989728,1731345031868,-98.7903257,0.00012961,2]
[341989730,1731345031879,-500.0,0.0001298,2]
[341989732,1731345031890,-500.0,0.00013,2]
[341989734,1731345031899,-205.44,0.00013002,2]
[341989736,1731345031909,-150.0,0.0001319,2]
[341989738,1731345031918,-300.0,0.0001319,2]
[341989740,1731345031927,-563.0,0.00013191,2]
[341989742,1731345031936,-628.0,0.00013191,2]
[341989744,1731345031945,-1207.116,0.00013191,2]
[341989746,1731345031954,-40.2837757,0.00013191,2]
[341989748,1731345031966,-1882.7162243,0.00013191,2]
[341989750,1731345031975,-559.0,0.00013191,2]
[341989752,1731345031984,-814.0,0.00013191,2]
[341989754,1731345031992,-1259.0,0.00013191,2]
[341989756,1731345032002,-3744.0,0.00013191,2]
[341989758,1731345032011,-819.9,0.00013191,2]
[341989760,1731345032020,-921.0,0.00013191,2]
[341989762,1731345032030,-150.0,0.0001337,2]
[341989764,1731345032039,-672.428,0.0001337,2]
[341989766,1731345032048,-150.0,0.00013575,2]
[341989768,1731345032057,-5894.4327757,0.00013588,2]
[341989771,1731345032068,-656.04,0.00013588,2]
[341989776,1731345032106,-9877.4999999,0.00013588,2]
[341989778,1731345032117,-567.89352,0.00013588,2]
[341989781,1731345032133,-1775.2352838,0.00013588,2]
[341989783,1731345032157,-1379.81316161,0.00013588,2]
[341989785,1731345032167,-696.848,0.00013598,2]
[341989787,1731345032176,-3541.92769752,0.00013598,2]
[341989789,1731345032185,-3918.2316,0.00013598,2]
[341989791,1731345032194,-2088.5672,0.00013598,2]
[341989793,1731345032203,-44021.9105,0.00013598,2]
[341989795,1731345032212,-200.0,0.00013598,2]
[341989797,1731345032221,-1000.0,0.00013598,2]
[341989799,1731345032230,-677.5964,0.00013598,2]
[341989801,1731345032240,-2500.0,0.00013598,2]
[341989803,1731345032249,-157.12,0.00013615,2]
[341989806,1731345032258,-205.44,0.00013621,2]
[341989808,1731345032268,-3541.92769748,0.00013632,2]
[341989810,1731345032277,-3541.92769748,0.00013665,2]
[341989812,1731345032286,-521.39572955,0.00013698,2]
[341989814,1731345032296,-500.0,0.00013698,2]
[341989816,1731345032305,-645.9179321,0.00013698,2]
[341989818,1731345032315,-500.0,0.00013698,2]
[341989820,1731345032324,-510.3830974,0.00013698,2]
[341989822,1731345032333,-500.0,0.00013698,2]
[341989824,1731345032343,-500.0,0.00013698,2]
[341989825,1731345032352,-500.0,0.00013698,2]
[341989827,1731345032361,-500.0,0.00013698,2]
[341989829,1731345032371,-500.0,0.00013698,2]
[341989831,1731345032380,-500.0,0.00013698,2]
[341989833,1731345032392,-500.0,0.00013698,2]
[341989834,1731345032402,-500.0,0.00013698,2]
[341989835,1731345032411,-500.0,0.00013698,2]
[341989836,1731345032421,-500.0,0.00013698,2]
[341989837,1731345032430,-500.0,0.00013698,2]
[341989838,1731345032440,-500.0,0.00013698,2]
[341989839,1731345032449,-500.0,0.00013698,2]
[341989840,1731345032459,-500.0,0.00013698,2]
[341989841,1731345032468,-500.0,0.00013698,2]
[341989842,1731345032482,-500.0,0.00013698,2]
[341989843,1731345032491,-500.0,0.00013698,2]
[341989844,1731345032500,-799.47038227,0.00013698,2]
[341989845,1731345032510,-381.87693247,0.00013698,2]
[341989846,1731345032519,-500.0,0.00013698,2]
[341989847,1731345032528,-500.0,0.00013698,2]
[341989848,1731345032538,-423.88949437,0.00013698,2]
[341989849,1731345032547,-500.0,0.00013698,2]
[341989850,1731345032557,-500.0,0.00013698,2]
[341989851,1731345032567,-502.65741195,0.00013698,2]
[341989852,1731345032576,-557.34826423,0.00013698,2]
[341989853,1731345032585,-578.68538012,0.00013698,2]
[341989854,1731345032594,-500.0,0.00013698,2]
[341989855,1731345032603,-512.01440655,0.00013698,2]
[341989856,1731345032613,-500.0,0.00013698,2]
[341989857,1731345032622,-500.0,0.00013698,2]
[341989858,1731345032631,-500.0,0.00013698,2]
[341989859,1731345032643,-150.0,0.00013698,2]
[341989860,1731345032652,-500.0,0.00013698,2]
[341989861,1731345032661,-500.0,0.00013698,2]
[341989862,1731345032671,-500.0,0.00013698,2]
[341989863,1731345032680,-198.84600636,0.00013698,2]
[341989864,1731345032690,-500.0,0.00013698,2]
[341989865,1731345032699,-404.12,0.00013698,2]
[341989866,1731345032709,-500.0,0.00013698,2]
[341989867,1731345032718,-500.0,0.00013698,2]
[341989868,1731345032727,-500.0,0.00013698,2]
[341989869,1731345032737,-500.0,0.00013698,2]
[341989870,1731345032746,-500.0,0.00013698,2]
[341989871,1731345032755,-500.0,0.00013698,2]
[341989872,1731345032765,-507.40669014,0.00013698,2]
[341989873,1731345032773,-500.0,0.00013698,2]
[341989874,1731345032783,-500.0,0.00013698,2]
[341989875,1731345032792,-500.0,0.00013698,2]
[341989876,1731345032801,-500.0,0.00013698,2]
[341989877,1731345032810,-500.0,0.00013698,2]
[341989878,1731345032820,-500.0,0.00013698,2]
[341989879,1731345032829,-500.0,0.00013698,2]
[341989880,1731345032838,-500.0,0.00013698,2]
[341989881,1731345032847,-500.0,0.00013698,2]
[341989882,1731345032857,-500.0,0.00013698,2]
[341989883,1731345032867,-728.91,0.00013698,2]
[341989884,1731345032876,-500.0,0.00013698,2]
[341989885,1731345032885,-500.0,0.00013698,2]
[341989886,1731345032897,-500.0,0.00013698,2]
[341989887,1731345032906,-500.0,0.00013698,2]
[341989888,1731345032915,-500.0,0.00013698,2]
[341989889,1731345032924,-500.0,0.00013698,2]
[341989890,1731345032933,-500.0,0.00013698,2]
[341989891,1731345032942,-500.0,0.00013698,2]
[341989892,1731345032951,-500.0,0.00013698,2]
[341989893,1731345032960,-500.0,0.00013698,2]
[341989894,1731345032969,-500.0,0.00013698,2]
[341989895,1731345032978,-500.0,0.00013698,2]
[341989896,1731345032987,-500.0,0.00013698,2]
[341989897,1731345032995,-500.0,0.00013698,2]
[341989898,1731345033004,-500.0,0.00013698,2]
[341989899,1731345033014,-500.0,0.00013698,2]
[341989900,1731345033023,-500.0,0.00013698,2]
[341989901,1731345033034,-665.02,0.00013698,2]
[341989902,1731345033044,-500.0,0.00013698,2]
[341989903,1731345033054,-317.85927647,0.00013698,2]
[341989904,1731345033064,-500.0,0.00013698,2]
[341989905,1731345033073,-500.0,0.00013698,2]
[341989906,1731345033082,-500.0,0.00013698,2]
[341989907,1731345033092,-500.0,0.00013698,2]
[341989908,1731345033102,-500.0,0.00013698,2]
[341989909,1731345033111,-500.0,0.00013698,2]
[341989910,1731345033119,-500.0,0.00013698,2]
[341989911,1731345033129,-540.10716344,0.00013698,2]
[341989912,1731345033142,-500.0,0.00013698,2]
[341989913,1731345033151,-500.0,0.00013698,2]
[341989914,1731345033160,-389.23068331,0.00013698,2]
[341989915,1731345033169,-500.0,0.00013698,2]
[341989916,1731345033178,-500.0,0.00013698,2]
[341989917,1731345033187,-500.0,0.00013698,2]
[341989918,1731345033196,-289.128222,0.00013698,2]
[341989919,1731345033206,-500.0,0.00013698,2]
[341989920,1731345033215,-500.0,0.00013698,2]
[341989921,1731345033224,-529.67798593,0.00013698,2]
[341989922,1731345033234,-500.0,0.00013698,2]
[341989923,1731345033243,-500.0,0.00013698,2]
[341989924,1731345033252,-500.0,0.00013698,2]
[341989925,1731345033261,-500.0,0.00013698,2]
[341989926,1731345033271,-559.13,0.00013698,2]
[341989927,1731345033280,-671.56,0.00013698,2]
[341989928,1731345033289,-500.0,0.00013698,2]
[341989929,1731345033299,-506.23,0.00013698,2]
[341989930,1731345033308,-176.81758366,0.00013698,2]
[341989931,1731345033318,-500.0,0.00013698,2]
[341989932,1731345033327,-500.0,0.00013698,2]
[341989933,1731345033337,-500.0,0.00013698,2]
[341989934,1731345033346,-1154.43,0.00013698,2]
[341989935,1731345033356,-500.0,0.00013698,2]
[341989936,1731345033365,-500.0,0.00013698,2]
[341989937,1731345033375,-500.0,0.00013698,2]
[341989938,1731345033384,-500.0,0.00013698,2]
[341989939,1731345033398,-500.0,0.00013698,2]
[341989940,1731345033409,-500.0,0.00013698,2]
[341989941,1731345033418,-500.0,0.00013698,2]
[341989942,1731345033428,-500.0,0.00013698,2]
[341989943,1731345033437,-500.0,0.00013698,2]
[341989944,1731345033446,-508.96,0.00013698,2]
[341989945,1731345033455,-500.0,0.00013698,2]
[341989946,1731345033469,-500.0,0.00013698,2]
[341989947,1731345033478,-500.0,0.00013698,2]
[341989948,1731345033488,-161.46,0.00013698,2]
[341989949,1731345033498,-500.0,0.00013698,2]
[341989950,1731345033509,-500.0,0.00013698,2]
[341989951,1731345033519,-500.0,0.00013698,2]
[341989952,1731345033528,-1011.89,0.00013698,2]
[341989953,1731345033538,-500.0,0.00013698,2]
[341989954,1731345033547,-500.0,0.00013698,2]
[341989955,1731345033557,-500.0,0.00013698,2]
[341989956,1731345033567,-500.0,0.00013698,2]
[341989957,1731345033575,-500.0,0.00013698,2]
[341989958,1731345033584,-500.0,0.00013698,2]
[341989959,1731345033593,-500.0,0.00013698,2]
[341989960,1731345033603,-500.0,0.00013698,2]
[341989961,1731345033612,-500.0,0.00013698,2]
[341989962,1731345033621,-500.0,0.00013698,2]
[341989963,1731345033631,-500.0,0.00013698,2]
[341989964,1731345033643,-500.0,0.00013698,2]
[341989965,1731345033653,-500.0,0.00013698,2]
[341989966,1731345033662,-500.0,0.00013698,2]
[341989967,1731345033672,-1088.49,0.00013698,2]
[341989968,1731345033681,-500.0,0.00013698,2]
[341989969,1731345033691,-500.0,0.00013698,2]
[341989970,1731345033700,-500.0,0.00013698,2]
[341989971,1731345033710,-500.0,0.00013698,2]
[341989972,1731345033719,-500.0,0.00013698,2]
[341989973,1731345033729,-305.153553,0.00013698,2]
[341989974,1731345033738,-524.29,0.00013698,2]
[341989975,1731345033747,-500.0,0.00013698,2]
[341989976,1731345033756,-500.0,0.00013698,2]
[341989977,1731345033766,-500.0,0.00013698,2]
[341989978,1731345033775,-500.0,0.00013698,2]
[341989979,1731345033784,-500.0,0.00013698,2]
[341989980,1731345033794,-500.0,0.00013698,2]
[341989981,1731345033803,-500.0,0.00013698,2]
[341989982,1731345033812,-500.0,0.00013698,2]
[341989983,1731345033822,-500.0,0.00013698,2]
[341989984,1731345033831,-1138.44,0.00013698,2]
[341989985,1731345033840,-500.0,0.00013698,2]
[341989986,1731345033849,-500.0,0.00013698,2]
[341989987,1731345033859,-500.0,0.00013698,2]
[341989988,1731345033868,-500.0,0.00013698,2]
[341989989,1731345033877,-500.0,0.00013698,2]
[341989990,1731345033886,-500.0,0.00013698,2]
[341989991,1731345033904,-500.0,0.00013698,2]
[341989992,1731345033913,-2251.24,0.00013698,2]
[341989993,1731345033922,-500.0,0.00013698,2]
[341989994,1731345033931,-500.0,0.00013698,2]
[341989995,1731345033940,-500.0,0.00013698,2]
[341989996,1731345033949,-500.0,0.00013698,2]
[341989997,1731345033958,-1000.0,0.00013698,2]
[341989998,1731345033967,-1000.0,0.00013698,2]
[341989999,1731345033977,-1000.0,0.00013698,2]
[341990000,1731345033986,-1000.0,0.00013698,2]
[341990001,1731345033995,-1000.0,0.00013698,2]
[341990002,1731345034005,-1000.0,0.00013698,2]
[341990003,1731345034014,-1000.0,0.00013698,2]
[341990004,1731345034023,-1000.0,0.00013698,2]
[341990005,1731345034032,-1000.0,0.00013698,2]
[341990006,1731345034040,-1000.0,0.00013698,2]
[341990007,1731345034050,-1000.0,0.00013698,2]
[341990008,1731345034060,-1000.0,0.00013698,2]
[341990009,1731345034069,-1000.0,0.00013698,2]
[341990010,1731345034078,-1000.0,0.00013698,2]
[341990011,1731345034088,-1000.0,0.00013698,2]
[341990012,1731345034097,-1000.0,0.00013698,2]
[341990013,1731345034106,-1000.0,0.00013698,2]
[341990014,1731345034116,-1000.0,0.00013698,2]
[341990015,1731345034125,-1000.0,0.00013698,2]
[341990016,1731345034134,-1000.0,0.00013698,2]
[341990017,1731345034146,-1000.0,0.00013698,2]
[341990018,1731345034155,-1000.0,0.00013698,2]
[341990019,1731345034165,-1000.0,0.00013698,2]
[341990020,1731345034174,-1000.0,0.00013698,2]
[341990021,1731345034184,-1000.0,0.00013698,2]
[341990022,1731345034193,-1000.0,0.00013698,2]
[341990023,1731345034203,-1000.0,0.00013698,2]
[341990024,1731345034212,-1000.0,0.00013698,2]
[341990025,1731345034222,-1000.0,0.00013698,2]
[341990026,1731345034231,-1000.0,0.00013698,2]
[341990027,1731345034241,-1000.0,0.00013698,2]
[341990028,1731345034250,-1000.0,0.00013698,2]
[341990029,1731345034259,-1000.0,0.00013698,2]
[341990030,1731345034268,-1000.0,0.00013698,2]
[341990031,1731345034278,-977.0,0.00013698,2]
[341990032,1731345034287,-150.0,0.00013699,2]
[341990033,1731345034297,-200.0,0.00013699,2]
[341990034,1731345034306,-3541.92769748,0.00013699,2]
[341990035,1731345034316,-4135.2778,0.00013699,2]
[341990036,1731345034325,-200.0,0.000137,2]
[341990037,1731345034334,-3541.92769748,0.00013732,2]
[341990038,1731345034344,-3541.92769748,0.00013766,2]
[341990039,1731345034353,-313.35206748,0.00013778,2]
[341990040,1731345034363,-313.35206744,0.00013795,2]
[341990041,1731345034373,-3541.92769748,0.00013799,2]
[341990042,1731345034382,-313.35206744,0.00013813,2]
[341990043,1731345034394,-546.94,0.0001383,2]
[341990044,1731345034404,-313.35206744,0.0001383,2]
[341990045,1731345034413,-3541.92769748,0.00013833,2]
[341990046,1731345034422,-1000.0,0.00013841,2]
[341990047,1731345034432,-313.35206744,0.00013848,2]
[341990048,1731345034441,-1089.0,0.00013857,2]
[341990049,1731345034450,-313.35206744,0.00013865,2]
[341990050,1731345034460,-3541.92769748,0.00013866,2]
[341990051,1731345034474,-500.0,0.00013877,2]
[341990052,1731345034483,-500.0,0.00013878,2]
[341990053,1731345034492,-500.0,0.00013878,2]
[341990054,1731345034502,-500.0,0.00013878,2]
[341990055,1731345034513,-517.1049407,0.00013878,2]
[341990056,1731345034522,-500.0,0.00013878,2]
[341990057,1731345034531,-500.0,0.00013878,2]
[341990058,1731345034540,-500.0,0.00013878,2]
[341990059,1731345034552,-500.0,0.00013878,2]
[341990060,1731345034561,-500.0,0.00013878,2]
[341990061,1731345034570,-500.0,0.00013878,2]
[341990062,1731345034579,-500.0,0.00013878,2]
[341990063,1731345034588,-500.0,0.00013878,2]
[341990064,1731345034597,-500.0,0.00013878,2]
[341990065,1731345034607,-500.0,0.00013878,2]
[341990066,1731345034617,-500.0,0.00013878,2]
[341990067,1731345034626,-728.91,0.00013878,2]
[341990068,1731345034635,-500.0,0.00013878,2]
[341990069,1731345034647,-500.0,0.00013878,2]
[341990070,1731345034657,-500.0,0.00013878,2]
[341990071,1731345034666,-500.0,0.00013878,2]
[341990072,1731345034675,-665.02,0.00013878,2]
[341990073,1731345034684,-500.0,0.00013878,2]
[341990074,1731345034694,-500.0,0.00013878,2]
[341990075,1731345034702,-500.0,0.00013878,2]
[341990076,1731345034712,-500.0,0.00013878,2]
[341990077,1731345034721,-500.0,0.00013878,2]
[341990078,1731345034730,-500.0,0.00013878,2]
[341990079,1731345034739,-500.0,0.00013878,2]
[341990080,1731345034749,-500.0,0.00013878,2]
[341990081,1731345034758,-500.0,0.00013878,2]
[341990082,1731345034768,-500.0,0.00013878,2]
[341990083,1731345034777,-500.0,0.00013878,2]
[341990084,1731345034786,-500.0,0.00013878,2]
[341990085,1731345034795,-500.0,0.00013878,2]
[341990086,1731345034805,-500.0,0.00013878,2]
[341990087,1731345034814,-500.0,0.00013878,2]
[341990088,1731345034823,-500.0,0.00013878,2]
[341990089,1731345034832,-506.23,0.00013878,2]
[341990090,1731345034841,-500.0,0.00013878,2]
[341990091,1731345034851,-500.0,0.00013878,2]
[341990092,1731345034860,-500.0,0.00013878,2]
[341990093,1731345034870,-500.0,0.00013878,2]
[341990094,1731345034879,-475.34763435,0.00013878,2]
[341990097,1731345037601,-500.0,0.00013698,2]
[341990098,1731345037610,-382.05541652,0.00013873,2]
[341990099,1731345037620,-91.50236565,0.00013878,2]
[341990100,1731345037629,-549.17109486,0.00013878,2]
[341990101,1731345037638,-500.0,0.00013878,2]
[341990102,1731345037651,-500.0,0.00013878,2]
[341990103,1731345037660,-500.0,0.00013878,2]
[341990104,1731345037669,-500.0,0.00013878,2]
[341990105,1731345037677,-500.0,0.00013878,2]
[341990106,1731345037686,-500.0,0.00013878,2]
[341990107,1731345037695,-500.0,0.00013878,2]
[341990108,1731345037704,-500.0,0.00013878,2]
[341990109,1731345037713,-500.0,0.00013878,2]
[341990110,1731345037723,-500.0,0.00013878,2]
[341990111,1731345037732,-500.0,0.00013879,2]
[341990112,1731345037741,-500.0,0.00013879,2]
[341990113,1731345037751,-500.0,0.00013879,2]
[341990114,1731345037760,-500.0,0.00013879,2]
[341990115,1731345037769,-92.24401191,0.00013879,2]
[341990116,1731345037781,-407.75598809,0.00013879,2]
[341990117,1731345037790,-500.0,0.00013879,2]
[341990118,1731345037799,-500.0,0.00013879,2]
[341990119,1731345037809,-194.63049868,0.00013879,2]
[341990120,1731345037818,-500.0,0.00013879,2]
[341990121,1731345037827,-500.0,0.00013879,2]
[341990122,1731345037837,-500.0,0.00013879,2]
[341990123,1731345037846,-500.0,0.00013879,2]
[341990124,1731345037857,-416.0402483,0.00013879,2]
[341990125,1731345037866,-728.91,0.00013879,2]
[341990126,1731345037876,-500.0,0.00013879,2]
[341990127,1731345037885,-500.0,0.00013879,2]
[341990128,1731345037896,-404.26326492,0.00013879,2]
[341990129,1731345037908,-95.73673508,0.00013879,2]
[341990130,1731345037917,-500.0,0.00013879,2]
[341990131,1731345037927,-393.67297557,0.00013879,2]
[341990132,1731345037936,-500.0,0.00013879,2]
[341990133,1731345037946,-500.0,0.00013879,2]
[341990134,1731345037955,-665.02,0.00013879,2]
[341990135,1731345037964,-500.0,0.00013879,2]
[341990136,1731345037974,-500.0,0.00013879,2]
[341990137,1731345037984,-500.0,0.00013879,2]
[341990138,1731345037993,-500.0,0.00013879,2]
[341990139,1731345038003,-500.0,0.00013879,2]
[341990140,1731345038013,-500.0,0.00013879,2]
[341990142,1731345038023,-500.0,0.00013879,2]
[341990144,1731345038032,-500.0,0.00013879,2]
[341990146,1731345038042,-500.0,0.00013879,2]
[341990148,1731345038052,-500.0,0.00013879,2]
[341990150,1731345038062,-341.21244018,0.00013879,2]
[341990152,1731345038072,-500.0,0.00013879,2]
[341990155,1731345038082,-500.0,0.00013879,2]
[341990156,1731345038092,-500.0,0.00013879,2]
[341990158,1731345038101,-500.0,0.00013879,2]
[341990160,1731345038111,-559.13,0.00013879,2]
[341990162,1731345038121,-500.0,0.00013879,2]
[341990164,1731345038131,-671.56,0.00013879,2]
[341990167,1731345038141,-500.0,0.00013879,2]
[341990169,1731345038154,-506.23,0.00013879,2]
[341990171,1731345038164,-500.0,0.00013879,2]
[341990173,1731345038173,-440.21893765,0.00013879,2]
[341990175,1731345038183,-1154.43,0.00013879,2]
[341990177,1731345038192,-456.02160446,0.00013879,2]
[341990178,1731345038201,-500.0,0.00013879,2]
[341990181,1731345038210,-500.0,0.00013879,2]
[341990182,1731345038219,-500.0,0.00013879,2]
[341990183,1731345038228,-500.0,0.00013879,2]
[341990184,1731345038238,-370.58937913,0.00013879,2]
[341990185,1731345038247,-500.0,0.00013879,2]
[341990186,1731345038256,-500.0,0.00013879,2]
[341990187,1731345038265,-500.0,0.00013879,2]
[341990188,1731345038274,-1011.89,0.00013879,2]
[341990189,1731345038284,-500.0,0.00013879,2]
[341990190,1731345038293,-500.0,0.00013879,2]
[341990191,1731345038302,-500.0,0.00013879,2]
[341990192,1731345038311,-500.0,0.00013879,2]
[341990193,1731345038320,-500.0,0.00013879,2]
[341990195,1731345038330,-500.0,0.00013879,2]
[341990196,1731345038339,-500.0,0.00013879,2]
[341990197,1731345038348,-500.0,0.00013879,2]
[341990198,1731345038357,-500.0,0.00013879,2]
[341990199,1731345038366,-500.0,0.00013879,2]
[341990200,1731345038375,-1088.49,0.00013879,2]
[341990201,1731345038384,-500.0,0.00013879,2]
[341990202,1731345038394,-500.0,0.00013879,2]
[341990203,1731345038404,-500.0,0.00013879,2]
[341990204,1731345038414,-500.0,0.00013879,2]
[341990205,1731345038423,-500.0,0.00013879,2]
[341990206,1731345038432,-500.0,0.00013879,2]
[341990207,1731345038442,-524.29,0.00013879,2]
[341990208,1731345038451,-500.0,0.00013879,2]
[341990209,1731345038460,-500.0,0.00013879,2]
[341990210,1731345038471,-500.0,0.00013879,2]
[341990211,1731345038481,-360.46,0.00013879,2]
[341990212,1731345038490,-500.0,0.00013879,2]
[341990213,1731345038499,-500.0,0.00013879,2]
[341990214,1731345038508,-500.0,0.00013879,2]
[341990215,1731345038518,-1138.44,0.00013879,2]
[341990216,1731345038527,-500.0,0.00013879,2]
[341990217,1731345038536,-570.93757221,0.00013879,2]
[341990218,1731345038545,-500.0,0.00013879,2]
[341990219,1731345038555,-500.0,0.00013879,2]
[341990220,1731345038565,-500.0,0.00013879,2]
[341990221,1731345038574,-161.81360373,0.00013879,2]
[341990222,1731345038586,-338.18639627,0.00013879,2]
[341990223,1731345038595,-500.0,0.00013879,2]
[341990224,1731345038605,-2251.24,0.00013879,2]
[341990225,1731345038614,-500.0,0.00013879,2]
[341990226,1731345038623,-500.0,0.00013879,2]
[341990227,1731345038632,-500.0,0.00013879,2]
[341990228,1731345038642,-42915.30166741,0.0001388,2]
[341990229,1731345038653,-840.03686686,0.0001388,2]
[341990230,1731345038664,-515.99549637,0.0001388,2]
[341990231,1731345038675,-3291.4424682,0.0001388,2]
[341990232,1731345038686,-1609.9008,0.0001388,2]
[341990233,1731345038697,-1787.92,0.0001388,2]
[341990234,1731345038708,-3590.13138443,0.0001388,2]
[341990235,1731345038726,-2004.27402074,0.0001388,2]
[341990241,1731345039716,-1961.38098516,0.0001388,2]
[341990242,1731345039776,-755.58999992,0.0001388,2]
[341990243,1731345039895,-2286.41945675,0.0001388,2]
[341990248,1731345043053,-10007.71815846,0.0001388,2]
[341990252,1731345043300,-1848.67201827,0.0001388,2]
[341990253,1731345043311,-5310.09832966,0.0001388,2]
[341990254,1731345043322,-338.68333536,0.0001388,2]
[341990255,1731345043333,-1493.05185601,0.0001388,2]
[341990258,1731345043564,-20675.59926712,0.0001388,2]
[341990316,1731345045797,-554.19,0.00013698,2]
[341990317,1731345045808,-148767.78388928,0.0001388,2]
[341990318,1731345045819,-313.35206744,0.00013883,2]
[341990319,1731345045829,-320.8032018,0.000139,2]
[341990320,1731345045837,-500.0,0.000139,2]
[341990321,1731345045844,-424.70051442,0.000139,2]
[341990322,1731345045851,-379.68866135,0.000139,2]
[341990323,1731345045859,-361.03647419,0.000139,2]
[341990324,1731345045869,-361.03647419,0.000139,2]
[341990325,1731345045879,-3541.92769748,0.000139,2]
[341990326,1731345045888,-361.03647419,0.000139,2]
[341990327,1731345045897,-361.03647419,0.000139,2]
[341990328,1731345045908,-361.03647419,0.000139,2]
[341990329,1731345045917,-361.03647419,0.000139,2]
[341990330,1731345045927,-361.03647419,0.000139,2]
[341990331,1731345045936,-361.03647419,0.000139,2]
[341990332,1731345045945,-361.03647419,0.000139,2]
[341990333,1731345045954,-361.03647419,0.000139,2]
[341990334,1731345045963,-361.03647419,0.000139,2]
[341990335,1731345045972,-361.03647419,0.000139,2]
[341990336,1731345045981,-361.03647419,0.000139,2]
[341990337,1731345045991,-361.03647419,0.000139,2]
[341990338,1731345046000,-361.03647419,0.000139,2]
[341990339,1731345046009,-361.03647419,0.000139,2]